Workbook

Sheet MOD.L1
A1: EXECUÇÃO DE SERVIÇOS DE IMPLANTAÇÃO DE PAVIMENTAÇÃO EM CONCRETO BETUMINOSO USINADO A QUENTE, EM VIAS URBANAS E RURAIS DE MUNÍCIPIOS DIVERSOS INSERIDOS NA ÁREA DE ATUAÇÃO DA CODEVASF, NO ESTADO DE MINAS GERAIS - LOTE 1 (POLO: SALINAS/MG) | J1: Extensão (km)
A5: =A1 -> EXECUÇÃO DE SERVIÇOS DE IMPLANTAÇÃO DE PAVIMENTAÇÃO EM CONCRETO BETUMINOSO USINADO A QUENTE, EM VIAS URBANAS E RURAIS DE MUNÍCIPIOS DIVERSOS INSERIDOS NA ÁREA DE ATUAÇÃO DA CODEVASF, NO ESTADO DE MINAS GERAIS - LOTE 1 (POLO: SALINAS/MG)
A6: ITEM | B6: ORIGEM COMPOSIÇÃO | C6: CÓDIGO COMPOSIÇÃO | D6: DISCRIMINAÇÃO DOS SERVIÇOS | H6: BDI %: | I6: =BDI!D24 -> 0.2135 | J6: R$/m² | K6: =K40/(I15) -> 0
H7: Encargos Sociais: | J7: Horista | K7: Mensalista
J8: ='ENC. SOCIAIS'!$E$51 -> 114.54 | K8: ='ENC. SOCIAIS'!$F$51 -> 73.09
H9: UND | I9: QTDE. | J9: PREÇO UNITÁRIO COM BDI (R$) | K9: TOTAL
D10: SERVIÇOS PRELIMINARES
A11: 1 | B11: Codevasf | C11: Composição Própria | D11: Implantação da Obra | H11: km | I11: 20
A12: 2 | B12: Codevasf | C12: Composição Própria | D12: Administração da Obra | H12: km | I12: 20
A13: 3 | B13: Codevasf | C13: Composição Própria | D13: Placa de Obra em Chapa de Aço Galvanizado | H13: und | I13: 1
D14: TERRAPLENAGEM
A15: 4 | B15: Codevasf | C15: Composição Própria | D15: Serviços topográficos para pavimentação, inclusive notas de serviços, acompanhamento e greide | H15: m² | I15: 120000
A16: 5 | B16: SICRO | C16: 5502114 | D16: Escavação, carga e transporte de material de 1ª categoria - DMT de 1.000 a 1.200 m - caminho de serviço em leito natural - com escavadeira e caminhão basculante de 14 m³ | H16: m³ | I16: 12000
A17: 6 | B17: SICRO | C17: 5502114 | D17: Espalhamento de material em bota-fora | H17: m³ | I17: 12000
D18: PAVIMENTAÇÃO
A19: 7 | B19: SICRO | C19: 4011463 | D19: Concreto asfáltico - faixa C - areia e brita comerciais | H19: t | I19: 14550
A20: 8 | B20: SICRO | C20: 4011351 | D20: Imprimação com asfalto diluído | H20: m² | I20: 120000
A21: 9 | B21: SICRO | C21: 4011353 | D21: Pintura de ligação | H21: m² | I21: 120000
A22: 10 | B22: SICRO | C22: 4011276 | D22: Base ou sub-base de brita graduada com brita comercial | H22: m³ | I22: 18000
A23: 11 | B23: SICRO | C23: 4011256 | D23: Base ou sub-base estabilizada granulometricamente com mistura solo brita (70% - 30%) na pista com material de jazida e brita comercial | H23: m³ | I23: 18000
A24: 12 | B24: SICRO | C24: 4011209 | D24: Regularização do subleito | H24: m² | I24: 120000
D25: AQUISIÇÃO E TRASNPORTE DO MATERIAL BETUMINOSO
A26: 13 | B26: CODEVASF | C26: CPU-12 | D26: AQUISIÇÃO DE CIMENTO ASFALTICO CAP 50/70 | H26: t | I26: 800.25
A27: 14 | B27: CODEVASF | C27: CPU-13 | D27: AQUISIÇÃO DE ASFALTO DILUIDO CM-30 | H27: t | I27: 192
A28: 15 | B28: CODEVASF | C28: CPU-14 | D28: AQUISIÇÃO DE EMULSÃO ASFÁLTICA RR-1C | H28: t | I28: 48
D29: SINALIZAÇÃO
A30: 16 | B30: SICRO | C30: 5213440 | D30: Fornecimento e implantação de placa de regulamentação em aço D = 0,60 m - película retrorrefletiva tipo I + SI | H30: und | I30: 20
A31: 17 | B31: SICRO | C31: 5213851 | D31: Fornecimento e implantação de suporte metálico galvanizado para placa de regulamentação - D = 0,60 m | H31: und | I31: 20
D32: DRENAGEM
A33: 18 | B33: SICRO | C33: 2003373 | D33: Meio fio de concreto - MFC 03 - areia e brita comerciais - fôrma de madeira | H33: m | I33: 40000
D34: LIMPEZA GERAL
A35: 19 | B35: Codevasf | C35: Composição Própria | D35: Limpeza Geral | H35: m² | I35: 140000
D36: SERVIÇOS COMPLEMENTARES
A37: 20 | B37: Codevasf | C37: Composição Própria | D37: Conserto de quebra no ramal na rua sem pavimento com fornecimento de material hidráulico | H37: m | I37: 2000
D38: PROJETO EXECUTIVO
A39: 21 | B39: Codevasf | C39: Composição Própria | D39: Projeto Executivo | H39: km | I39: 20
A40: VALOR TOTAL DO SRP | K40: =SUM(K11:K39) -> 0
A41: * De acordo com a localização da obra, os itens alterados deverão ser justificados e aprovados na Diretoria Executiva quando da autorização certame.

Sheet MOD.L2
A1: EXECUÇÃO DE SERVIÇOS DE IMPLANTAÇÃO DE PAVIMENTAÇÃO EM CONCRETO BETUMINOSO USINADO A QUENTE, EM VIAS URBANAS E RURAIS DE MUNÍCIPIOS DIVERSOS INSERIDOS NA ÁREA DE ATUAÇÃO DA CODEVASF, NO ESTADO DE MINAS GERAIS - LOTE 2 (POLO: DIAMANTINA/MG) | J1: Extensão (km)
A5: =A1 -> EXECUÇÃO DE SERVIÇOS DE IMPLANTAÇÃO DE PAVIMENTAÇÃO EM CONCRETO BETUMINOSO USINADO A QUENTE, EM VIAS URBANAS E RURAIS DE MUNÍCIPIOS DIVERSOS INSERIDOS NA ÁREA DE ATUAÇÃO DA CODEVASF, NO ESTADO DE MINAS GERAIS - LOTE 2 (POLO: DIAMANTINA/MG)
A6: ITEM | B6: ORIGEM COMPOSIÇÃO | C6: CÓDIGO COMPOSIÇÃO | D6: DISCRIMINAÇÃO DOS SERVIÇOS | H6: BDI %: | I6: =BDI!D24 -> 0.2135 | J6: R$/m² | K6: =K40/(I15) -> 0
H7: Encargos Sociais: | J7: Horista | K7: Mensalista
J8: ='ENC. SOCIAIS'!$E$51 -> 114.54 | K8: ='ENC. SOCIAIS'!$F$51 -> 73.09
H9: UND | I9: QTDE. | J9: PREÇO UNITÁRIO COM BDI (R$) | K9: TOTAL
D10: SERVIÇOS PRELIMINARES
A11: 1 | B11: Codevasf | C11: Composição Própria | D11: Implantação da Obra | H11: km | I11: 14
A12: 2 | B12: Codevasf | C12: Composição Própria | D12: Administração da Obra | H12: km | I12: 14
A13: 3 | B13: Codevasf | C13: Composição Própria | D13: Placa de Obra em Chapa de Aço Galvanizado | H13: und | I13: 1
D14: TERRAPLENAGEM
A15: 4 | B15: Codevasf | C15: Composição Própria | D15: Serviços topográficos para pavimentação, inclusive notas de serviços, acompanhamento e greide | H15: m² | I15: 84000
A16: 5 | B16: SICRO | C16: 5502114 | D16: Escavação, carga e transporte de material de 1ª categoria - DMT de 1.000 a 1.200 m - caminho de serviço em leito natural - com escavadeira e caminhão basculante de 14 m³ | H16: m³ | I16: 8400
A17: 6 | B17: SICRO | C17: 5502114 | D17: Espalhamento de material em bota-fora | H17: m³ | I17: 8400
D18: PAVIMENTAÇÃO
A19: 7 | B19: SICRO | C19: 4011463 | D19: Concreto asfáltico - faixa C - areia e brita comerciais | H19: t | I19: 10185
A20: 8 | B20: SICRO | C20: 4011351 | D20: Imprimação com asfalto diluído | H20: m² | I20: 84000
A21: 9 | B21: SICRO | C21: 4011353 | D21: Pintura de ligação | H21: m² | I21: 84000
A22: 10 | B22: SICRO | C22: 4011276 | D22: Base ou sub-base de brita graduada com brita comercial | H22: m³ | I22: 12600
A23: 11 | B23: SICRO | C23: 4011256 | D23: Base ou sub-base estabilizada granulometricamente com mistura solo brita (70% - 30%) na pista com material de jazida e brita comercial | H23: m³ | I23: 12600
A24: 12 | B24: SICRO | C24: 4011209 | D24: Regularização do subleito | H24: m² | I24: 84000
D25: AQUISIÇÃO E TRASNPORTE DO MATERIAL BETUMINOSO
A26: 13 | B26: CODEVASF | C26: CPU-12 | D26: AQUISIÇÃO DE CIMENTO ASFALTICO CAP 50/70 | H26: t | I26: 560.18
A27: 14 | B27: CODEVASF | C27: CPU-13 | D27: AQUISIÇÃO DE ASFALTO DILUIDO CM-30 | H27: t | I27: 134.4
A28: 15 | B28: CODEVASF | C28: CPU-14 | D28: AQUISIÇÃO DE EMULSÃO ASFÁLTICA RR-1C | H28: t | I28: 33.6
D29: SINALIZAÇÃO
A30: 16 | B30: SICRO | C30: 5213440 | D30: Fornecimento e implantação de placa de regulamentação em aço D = 0,60 m - película retrorrefletiva tipo I + SI | H30: und | I30: 14
A31: 17 | B31: SICRO | C31: 5213851 | D31: Fornecimento e implantação de suporte metálico galvanizado para placa de regulamentação - D = 0,60 m | H31: und | I31: 14
D32: DRENAGEM
A33: 18 | B33: SICRO | C33: 2003373 | D33: Meio fio de concreto - MFC 03 - areia e brita comerciais - fôrma de madeira | H33: m | I33: 28000
D34: LIMPEZA GERAL
A35: 19 | B35: Codevasf | C35: Composição Própria | D35: Limpeza Geral | H35: m² | I35: 98000
D36: SERVIÇOS COMPLEMENTARES
A37: 20 | B37: Codevasf | C37: Composição Própria | D37: Conserto de quebra no ramal na rua sem pavimento com fornecimento de material hidráulico | H37: m | I37: 1400
D38: PROJETO EXECUTIVO
A39: 21 | B39: Codevasf | C39: Composição Própria | D39: Projeto Executivo | H39: km | I39: 14
A40: VALOR TOTAL DO SRP | K40: =SUM(K11:K39) -> 0
A41: * De acordo com a localização da obra, os itens alterados deverão ser justificados e aprovados na Diretoria Executiva quando da autorização certame.

Sheet MOD.L3
A1: EXECUÇÃO DE SERVIÇOS DE IMPLANTAÇÃO DE PAVIMENTAÇÃO EM CONCRETO BETUMINOSO USINADO A QUENTE, EM VIAS URBANAS E RURAIS DE MUNÍCIPIOS DIVERSOS INSERIDOS NA ÁREA DE ATUAÇÃO DA CODEVASF, NO ESTADO DE MINAS GERAIS - LOTE 3 (POLO: TURMALINA/MG) | J1: Extensão (km)
A5: =A1 -> EXECUÇÃO DE SERVIÇOS DE IMPLANTAÇÃO DE PAVIMENTAÇÃO EM CONCRETO BETUMINOSO USINADO A QUENTE, EM VIAS URBANAS E RURAIS DE MUNÍCIPIOS DIVERSOS INSERIDOS NA ÁREA DE ATUAÇÃO DA CODEVASF, NO ESTADO DE MINAS GERAIS - LOTE 3 (POLO: TURMALINA/MG)
A6: ITEM | B6: ORIGEM COMPOSIÇÃO | C6: CÓDIGO COMPOSIÇÃO | D6: DISCRIMINAÇÃO DOS SERVIÇOS | H6: BDI %: | I6: =BDI!D24 -> 0.2135 | J6: R$/m² | K6: =K40/(I15) -> 0
H7: Encargos Sociais: | J7: Horista | K7: Mensalista
J8: ='ENC. SOCIAIS'!$E$51 -> 114.54 | K8: ='ENC. SOCIAIS'!$F$51 -> 73.09
H9: UND | I9: QTDE. | J9: PREÇO UNITÁRIO COM BDI (R$) | K9: TOTAL
D10: SERVIÇOS PRELIMINARES
A11: 1 | B11: Codevasf | C11: Composição Própria | D11: Implantação da Obra | H11: km | I11: 14
A12: 2 | B12: Codevasf | C12: Composição Própria | D12: Administração da Obra | H12: km | I12: 14
A13: 3 | B13: Codevasf | C13: Composição Própria | D13: Placa de Obra em Chapa de Aço Galvanizado | H13: und | I13: 1
D14: TERRAPLENAGEM
A15: 4 | B15: Codevasf | C15: Composição Própria | D15: Serviços topográficos para pavimentação, inclusive notas de serviços, acompanhamento e greide | H15: m² | I15: 84000
A16: 5 | B16: SICRO | C16: 5502114 | D16: Escavação, carga e transporte de material de 1ª categoria - DMT de 1.000 a 1.200 m - caminho de serviço em leito natural - com escavadeira e caminhão basculante de 14 m³ | H16: m³ | I16: 8400
A17: 6 | B17: SICRO | C17: 5502114 | D17: Espalhamento de material em bota-fora | H17: m³ | I17: 8400
D18: PAVIMENTAÇÃO
A19: 7 | B19: SICRO | C19: 4011463 | D19: Concreto asfáltico - faixa C - areia e brita comerciais | H19: t | I19: 10185
A20: 8 | B20: SICRO | C20: 4011351 | D20: Imprimação com asfalto diluído | H20: m² | I20: 84000
A21: 9 | B21: SICRO | C21: 4011353 | D21: Pintura de ligação | H21: m² | I21: 84000
A22: 10 | B22: SICRO | C22: 4011276 | D22: Base ou sub-base de brita graduada com brita comercial | H22: m³ | I22: 12600
A23: 11 | B23: SICRO | C23: 4011256 | D23: Base ou sub-base estabilizada granulometricamente com mistura solo brita (70% - 30%) na pista com material de jazida e brita comercial | H23: m³ | I23: 12600
A24: 12 | B24: SICRO | C24: 4011209 | D24: Regularização do subleito | H24: m² | I24: 84000
D25: AQUISIÇÃO E TRASNPORTE DO MATERIAL BETUMINOSO
A26: 13 | B26: CODEVASF | C26: CPU-12 | D26: AQUISIÇÃO DE CIMENTO ASFALTICO CAP 50/70 | H26: t | I26: 560.18
A27: 14 | B27: CODEVASF | C27: CPU-13 | D27: AQUISIÇÃO DE ASFALTO DILUIDO CM-30 | H27: t | I27: 134.4
A28: 15 | B28: CODEVASF | C28: CPU-14 | D28: AQUISIÇÃO DE EMULSÃO ASFÁLTICA RR-1C | H28: t | I28: 33.6
D29: SINALIZAÇÃO
A30: 16 | B30: SICRO | C30: 5213440 | D30: Fornecimento e implantação de placa de regulamentação em aço D = 0,60 m - película retrorrefletiva tipo I + SI | H30: und | I30: 14
A31: 17 | B31: SICRO | C31: 5213851 | D31: Fornecimento e implantação de suporte metálico galvanizado para placa de regulamentação - D = 0,60 m | H31: und | I31: 14
D32: DRENAGEM
A33: 18 | B33: SICRO | C33: 2003373 | D33: Meio fio de concreto - MFC 03 - areia e brita comerciais - fôrma de madeira | H33: m | I33: 28000
D34: LIMPEZA GERAL
A35: 19 | B35: Codevasf | C35: Composição Própria | D35: Limpeza Geral | H35: m² | I35: 98000
D36: SERVIÇOS COMPLEMENTARES
A37: 20 | B37: Codevasf | C37: Composição Própria | D37: Conserto de quebra no ramal na rua sem pavimento com fornecimento de material hidráulico | H37: m | I37: 1400
D38: PROJETO EXECUTIVO
A39: 21 | B39: Codevasf | C39: Composição Própria | D39: Projeto Executivo | H39: km | I39: 14
A40: VALOR TOTAL DO SRP | K40: =SUM(K11:K39) -> 0
A41: * De acordo com a localização da obra, os itens alterados deverão ser justificados e aprovados na Diretoria Executiva quando da autorização certame.

Sheet MOD.L4
A1: EXECUÇÃO DE SERVIÇOS DE IMPLANTAÇÃO DE PAVIMENTAÇÃO EM CONCRETO BETUMINOSO USINADO A QUENTE, EM VIAS URBANAS E RURAIS DE MUNÍCIPIOS DIVERSOS INSERIDOS NA ÁREA DE ATUAÇÃO DA CODEVASF, NO ESTADO DE MINAS GERAIS - LOTE 4 (POLO: ITAOBIM/MG) | J1: Extensão (km)
A5: =A1 -> EXECUÇÃO DE SERVIÇOS DE IMPLANTAÇÃO DE PAVIMENTAÇÃO EM CONCRETO BETUMINOSO USINADO A QUENTE, EM VIAS URBANAS E RURAIS DE MUNÍCIPIOS DIVERSOS INSERIDOS NA ÁREA DE ATUAÇÃO DA CODEVASF, NO ESTADO DE MINAS GERAIS - LOTE 4 (POLO: ITAOBIM/MG)
A6: ITEM | B6: ORIGEM COMPOSIÇÃO | C6: CÓDIGO COMPOSIÇÃO | D6: DISCRIMINAÇÃO DOS SERVIÇOS | H6: BDI %: | I6: =BDI!D24 -> 0.2135 | J6: R$/m² | K6: =K40/(I15) -> 0
H7: Encargos Sociais: | J7: Horista | K7: Mensalista
J8: ='ENC. SOCIAIS'!$E$51 -> 114.54 | K8: ='ENC. SOCIAIS'!$F$51 -> 73.09
H9: UND | I9: QTDE. | J9: PREÇO UNITÁRIO COM BDI (R$) | K9: TOTAL
D10: SERVIÇOS PRELIMINARES
A11: 1 | B11: Codevasf | C11: Composição Própria | D11: Implantação da Obra | H11: km | I11: 7
A12: 2 | B12: Codevasf | C12: Composição Própria | D12: Administração da Obra | H12: km | I12: 7
A13: 3 | B13: Codevasf | C13: Composição Própria | D13: Placa de Obra em Chapa de Aço Galvanizado | H13: und | I13: 1
D14: TERRAPLENAGEM
A15: 4 | B15: Codevasf | C15: Composição Própria | D15: Serviços topográficos para pavimentação, inclusive notas de serviços, acompanhamento e greide | H15: m² | I15: 42000
A16: 5 | B16: SICRO | C16: 5502114 | D16: Escavação, carga e transporte de material de 1ª categoria - DMT de 1.000 a 1.200 m - caminho de serviço em leito natural - com escavadeira e caminhão basculante de 14 m³ | H16: m³ | I16: 4200
A17: 6 | B17: SICRO | C17: 5502114 | D17: Espalhamento de material em bota-fora | H17: m³ | I17: 4200
D18: PAVIMENTAÇÃO
A19: 7 | B19: SICRO | C19: 4011463 | D19: Concreto asfáltico - faixa C - areia e brita comerciais | H19: t | I19: 5092.5
A20: 8 | B20: SICRO | C20: 4011351 | D20: Imprimação com asfalto diluído | H20: m² | I20: 42000
A21: 9 | B21: SICRO | C21: 4011353 | D21: Pintura de ligação | H21: m² | I21: 42000
A22: 10 | B22: SICRO | C22: 4011276 | D22: Base ou sub-base de brita graduada com brita comercial | H22: m³ | I22: 6300
A23: 11 | B23: SICRO | C23: 4011256 | D23: Base ou sub-base estabilizada granulometricamente com mistura solo brita (70% - 30%) na pista com material de jazida e brita comercial | H23: m³ | I23: 6300
A24: 12 | B24: SICRO | C24: 4011209 | D24: Regularização do subleito | H24: m² | I24: 42000
D25: AQUISIÇÃO E TRASNPORTE DO MATERIAL BETUMINOSO
A26: 13 | B26: CODEVASF | C26: CPU-12 | D26: AQUISIÇÃO DE CIMENTO ASFALTICO CAP 50/70 | H26: t | I26: 280.09
A27: 14 | B27: CODEVASF | C27: CPU-13 | D27: AQUISIÇÃO DE ASFALTO DILUIDO CM-30 | H27: t | I27: 67.2
A28: 15 | B28: CODEVASF | C28: CPU-14 | D28: AQUISIÇÃO DE EMULSÃO ASFÁLTICA RR-1C | H28: t | I28: 16.8
D29: SINALIZAÇÃO
A30: 16 | B30: SICRO | C30: 5213440 | D30: Fornecimento e implantação de placa de regulamentação em aço D = 0,60 m - película retrorrefletiva tipo I + SI | H30: und | I30: 7
A31: 17 | B31: SICRO | C31: 5213851 | D31: Fornecimento e implantação de suporte metálico galvanizado para placa de regulamentação - D = 0,60 m | H31: und | I31: 7
D32: DRENAGEM
A33: 18 | B33: SICRO | C33: 2003373 | D33: Meio fio de concreto - MFC 03 - areia e brita comerciais - fôrma de madeira | H33: m | I33: 14000
D34: LIMPEZA GERAL
A35: 19 | B35: Codevasf | C35: Composição Própria | D35: Limpeza Geral | H35: m² | I35: 49000
D36: SERVIÇOS COMPLEMENTARES
A37: 20 | B37: Codevasf | C37: Composição Própria | D37: Conserto de quebra no ramal na rua sem pavimento com fornecimento de material hidráulico | H37: m | I37: 700
D38: PROJETO EXECUTIVO
A39: 21 | B39: Codevasf | C39: Composição Própria | D39: Projeto Executivo | H39: km | I39: 7
A40: VALOR TOTAL DO SRP | K40: =SUM(K11:K39) -> 0
A41: * De acordo com a localização da obra, os itens alterados deverão ser justificados e aprovados na Diretoria Executiva quando da autorização certame.

Sheet MOD.L5
A1: EXECUÇÃO DE SERVIÇOS DE IMPLANTAÇÃO DE PAVIMENTAÇÃO EM CONCRETO BETUMINOSO USINADO A QUENTE, EM VIAS URBANAS E RURAIS DE MUNÍCIPIOS DIVERSOS INSERIDOS NA ÁREA DE ATUAÇÃO DA CODEVASF, NO ESTADO DE MINAS GERAIS - LOTE 5 (POLO: ALMENARA/MG) | J1: Extensão (km)
A5: =A1 -> EXECUÇÃO DE SERVIÇOS DE IMPLANTAÇÃO DE PAVIMENTAÇÃO EM CONCRETO BETUMINOSO USINADO A QUENTE, EM VIAS URBANAS E RURAIS DE MUNÍCIPIOS DIVERSOS INSERIDOS NA ÁREA DE ATUAÇÃO DA CODEVASF, NO ESTADO DE MINAS GERAIS - LOTE 5 (POLO: ALMENARA/MG)
A6: ITEM | B6: ORIGEM COMPOSIÇÃO | C6: CÓDIGO COMPOSIÇÃO | D6: DISCRIMINAÇÃO DOS SERVIÇOS | H6: BDI %: | I6: =BDI!D24 -> 0.2135 | J6: R$/m² | K6: =K40/(I15) -> 0
H7: Encargos Sociais: | J7: Horista | K7: Mensalista
J8: ='ENC. SOCIAIS'!$E$51 -> 114.54 | K8: ='ENC. SOCIAIS'!$F$51 -> 73.09
H9: UND | I9: QTDE. | J9: PREÇO UNITÁRIO COM BDI (R$) | K9: TOTAL
D10: SERVIÇOS PRELIMINARES
A11: 1 | B11: Codevasf | C11: Composição Própria | D11: Implantação da Obra | H11: km | I11: 12
A12: 2 | B12: Codevasf | C12: Composição Própria | D12: Administração da Obra | H12: km | I12: 12
A13: 3 | B13: Codevasf | C13: Composição Própria | D13: Placa de Obra em Chapa de Aço Galvanizado | H13: und | I13: 1
D14: TERRAPLENAGEM
A15: 4 | B15: Codevasf | C15: Composição Própria | D15: Serviços topográficos para pavimentação, inclusive notas de serviços, acompanhamento e greide | H15: m² | I15: 72000
A16: 5 | B16: SICRO | C16: 5502114 | D16: Escavação, carga e transporte de material de 1ª categoria - DMT de 1.000 a 1.200 m - caminho de serviço em leito natural - com escavadeira e caminhão basculante de 14 m³ | H16: m³ | I16: 7200
A17: 6 | B17: SICRO | C17: 5502114 | D17: Espalhamento de material em bota-fora | H17: m³ | I17: 7200
D18: PAVIMENTAÇÃO
A19: 7 | B19: SICRO | C19: 4011463 | D19: Concreto asfáltico - faixa C - areia e brita comerciais | H19: t | I19: 8730
A20: 8 | B20: SICRO | C20: 4011351 | D20: Imprimação com asfalto diluído | H20: m² | I20: 72000
A21: 9 | B21: SICRO | C21: 4011353 | D21: Pintura de ligação | H21: m² | I21: 72000
A22: 10 | B22: SICRO | C22: 4011276 | D22: Base ou sub-base de brita graduada com brita comercial | H22: m³ | I22: 10800
A23: 11 | B23: SICRO | C23: 4011256 | D23: Base ou sub-base estabilizada granulometricamente com mistura solo brita (70% - 30%) na pista com material de jazida e brita comercial | H23: m³ | I23: 10800
A24: 12 | B24: SICRO | C24: 4011209 | D24: Regularização do subleito | H24: m² | I24: 72000
D25: AQUISIÇÃO E TRASNPORTE DO MATERIAL BETUMINOSO
A26: 13 | B26: CODEVASF | C26: CPU-12 | D26: AQUISIÇÃO DE CIMENTO ASFALTICO CAP 50/70 | H26: t | I26: 480.15
A27: 14 | B27: CODEVASF | C27: CPU-13 | D27: AQUISIÇÃO DE ASFALTO DILUIDO CM-30 | H27: t | I27: 115.2
A28: 15 | B28: CODEVASF | C28: CPU-14 | D28: AQUISIÇÃO DE EMULSÃO ASFÁLTICA RR-1C | H28: t | I28: 28.8
D29: SINALIZAÇÃO
A30: 16 | B30: SICRO | C30: 5213440 | D30: Fornecimento e implantação de placa de regulamentação em aço D = 0,60 m - película retrorrefletiva tipo I + SI | H30: und | I30: 12
A31: 17 | B31: SICRO | C31: 5213851 | D31: Fornecimento e implantação de suporte metálico galvanizado para placa de regulamentação - D = 0,60 m | H31: und | I31: 12
D32: DRENAGEM
A33: 18 | B33: SICRO | C33: 2003373 | D33: Meio fio de concreto - MFC 03 - areia e brita comerciais - fôrma de madeira | H33: m | I33: 24000
D34: LIMPEZA GERAL
A35: 19 | B35: Codevasf | C35: Composição Própria | D35: Limpeza Geral | H35: m² | I35: 84000
D36: SERVIÇOS COMPLEMENTARES
A37: 20 | B37: Codevasf | C37: Composição Própria | D37: Conserto de quebra no ramal na rua sem pavimento com fornecimento de material hidráulico | H37: m | I37: 1200
D38: PROJETO EXECUTIVO
A39: 21 | B39: Codevasf | C39: Composição Própria | D39: Projeto Executivo | H39: km | I39: 12
A40: VALOR TOTAL DO SRP | K40: =SUM(K11:K39) -> 0
A41: * De acordo com a localização da obra, os itens alterados deverão ser justificados e aprovados na Diretoria Executiva quando da autorização certame.

Sheet MOD.L6
A1: EXECUÇÃO DE SERVIÇOS DE IMPLANTAÇÃO DE PAVIMENTAÇÃO EM CONCRETO BETUMINOSO USINADO A QUENTE, EM VIAS URBANAS E RURAIS DE MUNÍCIPIOS DIVERSOS INSERIDOS NA ÁREA DE ATUAÇÃO DA CODEVASF, NO ESTADO DE MINAS GERAIS - LOTE 6 (POLO: TEÓFILO OTONI/MG) | J1: Extensão (km)
A5: =A1 -> EXECUÇÃO DE SERVIÇOS DE IMPLANTAÇÃO DE PAVIMENTAÇÃO EM CONCRETO BETUMINOSO USINADO A QUENTE, EM VIAS URBANAS E RURAIS DE MUNÍCIPIOS DIVERSOS INSERIDOS NA ÁREA DE ATUAÇÃO DA CODEVASF, NO ESTADO DE MINAS GERAIS - LOTE 6 (POLO: TEÓFILO OTONI/MG)
A6: ITEM | B6: ORIGEM COMPOSIÇÃO | C6: CÓDIGO COMPOSIÇÃO | D6: DISCRIMINAÇÃO DOS SERVIÇOS | H6: BDI %: | I6: =BDI!D24 -> 0.2135 | J6: R$/m² | K6: =K40/(I15) -> 0
H7: Encargos Sociais: | J7: Horista | K7: Mensalista
J8: ='ENC. SOCIAIS'!$E$51 -> 114.54 | K8: ='ENC. SOCIAIS'!$F$51 -> 73.09
H9: UND | I9: QTDE. | J9: PREÇO UNITÁRIO COM BDI (R$) | K9: TOTAL
D10: SERVIÇOS PRELIMINARES
A11: 1 | B11: Codevasf | C11: Composição Própria | D11: Implantação da Obra | H11: km | I11: 12
A12: 2 | B12: Codevasf | C12: Composição Própria | D12: Administração da Obra | H12: km | I12: 12
A13: 3 | B13: Codevasf | C13: Composição Própria | D13: Placa de Obra em Chapa de Aço Galvanizado | H13: und | I13: 1
D14: TERRAPLENAGEM
A15: 4 | B15: Codevasf | C15: Composição Própria | D15: Serviços topográficos para pavimentação, inclusive notas de serviços, acompanhamento e greide | H15: m² | I15: 72000
A16: 5 | B16: SICRO | C16: 5502114 | D16: Escavação, carga e transporte de material de 1ª categoria - DMT de 1.000 a 1.200 m - caminho de serviço em leito natural - com escavadeira e caminhão basculante de 14 m³ | H16: m³ | I16: 7200
A17: 6 | B17: SICRO | C17: 5502114 | D17: Espalhamento de material em bota-fora | H17: m³ | I17: 7200
D18: PAVIMENTAÇÃO
A19: 7 | B19: SICRO | C19: 4011463 | D19: Concreto asfáltico - faixa C - areia e brita comerciais | H19: t | I19: 8730
A20: 8 | B20: SICRO | C20: 4011351 | D20: Imprimação com asfalto diluído | H20: m² | I20: 72000
A21: 9 | B21: SICRO | C21: 4011353 | D21: Pintura de ligação | H21: m² | I21: 72000
A22: 10 | B22: SICRO | C22: 4011276 | D22: Base ou sub-base de brita graduada com brita comercial | H22: m³ | I22: 10800
A23: 11 | B23: SICRO | C23: 4011256 | D23: Base ou sub-base estabilizada granulometricamente com mistura solo brita (70% - 30%) na pista com material de jazida e brita comercial | H23: m³ | I23: 10800
A24: 12 | B24: SICRO | C24: 4011209 | D24: Regularização do subleito | H24: m² | I24: 72000
D25: AQUISIÇÃO E TRASNPORTE DO MATERIAL BETUMINOSO
A26: 13 | B26: CODEVASF | C26: CPU-12 | D26: AQUISIÇÃO DE CIMENTO ASFALTICO CAP 50/70 | H26: t | I26: 480.15
A27: 14 | B27: CODEVASF | C27: CPU-13 | D27: AQUISIÇÃO DE ASFALTO DILUIDO CM-30 | H27: t | I27: 115.2
A28: 15 | B28: CODEVASF | C28: CPU-14 | D28: AQUISIÇÃO DE EMULSÃO ASFÁLTICA RR-1C | H28: t | I28: 28.8
D29: SINALIZAÇÃO
A30: 16 | B30: SICRO | C30: 5213440 | D30: Fornecimento e implantação de placa de regulamentação em aço D = 0,60 m - película retrorrefletiva tipo I + SI | H30: und | I30: 12
A31: 17 | B31: SICRO | C31: 5213851 | D31: Fornecimento e implantação de suporte metálico galvanizado para placa de regulamentação - D = 0,60 m | H31: und | I31: 12
D32: DRENAGEM
A33: 18 | B33: SICRO | C33: 2003373 | D33: Meio fio de concreto - MFC 03 - areia e brita comerciais - fôrma de madeira | H33: m | I33: 24000
D34: LIMPEZA GERAL
A35: 19 | B35: Codevasf | C35: Composição Própria | D35: Limpeza Geral | H35: m² | I35: 84000
D36: SERVIÇOS COMPLEMENTARES
A37: 20 | B37: Codevasf | C37: Composição Própria | D37: Conserto de quebra no ramal na rua sem pavimento com fornecimento de material hidráulico | H37: m | I37: 1200
D38: PROJETO EXECUTIVO
A39: 21 | B39: Codevasf | C39: Composição Própria | D39: Projeto Executivo | H39: km | I39: 12
A40: VALOR TOTAL DO SRP | K40: =SUM(K11:K39) -> 0
A41: * De acordo com a localização da obra, os itens alterados deverão ser justificados e aprovados na Diretoria Executiva quando da autorização certame.

Sheet CRONOGRAMA
A2: =MOD.L1!$A$5 -> EXECUÇÃO DE SERVIÇOS DE IMPLANTAÇÃO DE PAVIMENTAÇÃO EM CONCRETO BETUMINOSO USINADO A QUENTE, EM VIAS URBANAS E RURAIS DE MUNÍCIPIOS DIVERSOS INSERIDOS NA ÁREA DE ATUAÇÃO DA CODEVASF, NO ESTADO DE MINAS GERAIS - LOTE 1 (POLO: SALINAS/MG)
A3: Cronograma Físico e Financeiro
A4: Item | B4: Descrição | C4: Total Por Etapa | D4: 30 DIAS | E4: 60 DIAS | F4: 90 DIAS | G4: 120 DIAS | H4: 150 DIAS | I4: 180 DIAS | J4: 210 DIAS | K4: 240 DIAS | L4: 270 DIAS | M4: 300 DIAS | N4: 330 DIAS | O4: 360 DIAS
B5: =MOD.L1!$D$10 -> SERVIÇOS PRELIMINARES | C5: 1 | E5: =$C$5/11 -> 0.09090909091 | F5: =$C$5/11 -> 0.09090909091 | G5: 0.09090909091 | H5: 0.09090909091 | I5: 0.09090909091 | J5: 0.09090909091 | K5: 0.09090909091 | L5: 0.09090909091 | M5: 0.09090909091 | N5: 0.09090909091 | O5: 0.09090909091 | Q5: =SUM(D5:O5) -> 1
C6: =SUM(MOD.L1!K11:K13) -> 0 | E6: =$C$6*E5 -> 0 | F6: 0 | G6: 0 | H6: 0 | I6: 0 | J6: 0 | K6: 0 | L6: 0 | M6: 0 | N6: 0 | O6: 0 | Q6: =SUM(D6:O6) -> 0 | R6: =C6 -> 0 | S6: =Q6-R6 -> 0
B7: =MOD.L1!D14 -> TERRAPLENAGEM | C7: 1 | F7: =$C$9/10 -> 0.1 | G7: =$C$9/10 -> 0.1 | H7: 0.1 | I7: 0.1 | J7: 0.1 | K7: 0.1 | L7: 0.1 | M7: 0.1 | N7: 0.1 | O7: 0.1 | Q7: =SUM(F7:O7) -> 1
C8: =SUM(MOD.L1!K15:K17) -> 0 | F8: =$C$8*F7 -> 0 | G8: =$C$8*G7 -> 0 | H8: 0 | I8: 0 | J8: 0 | K8: 0 | L8: 0 | M8: 0 | N8: 0 | O8: 0 | Q8: 0 | R8: =C8 -> 0 | S8: =Q8-R8 -> 0
B9: =MOD.L1!$D$18 -> PAVIMENTAÇÃO | C9: 1 | F9: =$C$9/10 -> 0.1 | G9: 0.1 | H9: 0.1 | I9: 0.1 | J9: 0.1 | K9: 0.1 | L9: 0.1 | M9: 0.1 | N9: 0.1 | O9: 0.1 | Q9: 1
C10: =SUM(MOD.L1!K19:K28) -> 0 | F10: =$C$10*F9 -> 0 | G10: =$C$10*G9 -> 0 | H10: 0 | I10: 0 | J10: 0 | K10: 0 | L10: 0 | M10: 0 | N10: 0 | O10: 0 | Q10: 0 | R10: =C10 -> 0 | S10: =Q10-R10 -> 0
B11: =MOD.L1!$D$29 -> SINALIZAÇÃO | C11: 1 | F11: =$C$11/10 -> 0.1 | G11: =(100%-$F$11)/9 -> 0.1 | H11: =(100%-$F$11)/9 -> 0.1 | I11: 0.1 | J11: 0.1 | K11: 0.1 | L11: 0.1 | M11: 0.1 | N11: 0.1 | O11: 0.1 | Q11: 1
C12: =SUM(MOD.L1!K30:K31) -> 0 | F12: =$C$12*F11 -> 0 | G12: 0 | H12: 0 | I12: 0 | J12: 0 | K12: 0 | L12: 0 | M12: 0 | N12: 0 | O12: 0 | Q12: 0 | R12: =C12 -> 0 | S12: 0
B13: =MOD.L1!$D$32 -> DRENAGEM | C13: 1 | F13: =$C$13/10 -> 0.1 | G13: =$C$13/10 -> 0.1 | H13: 0.1 | I13: 0.1 | J13: 0.1 | K13: 0.1 | L13: 0.1 | M13: 0.1 | N13: 0.1 | O13: 0.1 | Q13: =SUM(D13:O13) -> 1
C14: =SUM(MOD.L1!K33) -> 0 | F14: =$C$14*F13 -> 0 | G14: =$C$14*G13 -> 0 | H14: 0 | I14: 0 | J14: 0 | K14: 0 | L14: 0 | M14: 0 | N14: 0 | O14: 0 | Q14: 0 | R14: =C14 -> 0 | S14: 0
B15: =MOD.L1!$D$34 -> LIMPEZA GERAL | C15: 1 | F15: =100%/10 -> 0.1 | G15: =100%/10 -> 0.1 | H15: 0.1 | I15: 0.1 | J15: 0.1 | K15: 0.1 | L15: 0.1 | M15: 0.1 | N15: 0.1 | O15: 0.1 | Q15: =SUM(D15:O15) -> 1
C16: =SUM(MOD.L1!K35) -> 0 | F16: =$C$16*F15 -> 0 | G16: 0 | H16: 0 | I16: 0 | J16: 0 | K16: 0 | L16: 0 | M16: 0 | N16: 0 | O16: 0 | Q16: 0 | R16: =C16 -> 0 | S16: =Q16-R16 -> 0
B17: =MOD.L1!D36 -> SERVIÇOS COMPLEMENTARES | C17: 1 | F17: =100%/10 -> 0.1 | G17: 0.1 | H17: 0.1 | I17: 0.1 | J17: 0.1 | K17: 0.1 | L17: 0.1 | M17: 0.1 | N17: 0.1 | O17: 0.1 | Q17: =SUM(D17:O17) -> 1
C18: =MOD.L1!K37 -> 0 | F18: =$C$18*F17 -> 0 | G18: =$C$18*G17 -> 0 | H18: 0 | I18: 0 | J18: 0 | K18: 0 | L18: 0 | M18: 0 | N18: 0 | O18: 0 | Q18: 0 | R18: =C18 -> 0 | S18: =Q18-R18 -> 0
B19: =MOD.L1!$D$38 -> PROJETO EXECUTIVO | C19: 1 | D19: 0.5 | E19: 0.5 | Q19: =SUM(D19:O19) -> 1
C20: =MOD.L1!K39 -> 0 | D20: =$C$20*D19 -> 0 | E20: =$C$20*E19 -> 0 | Q20: 0 | R20: =C20 -> 0 | S20: =Q20-R20 -> 0
A22: Porcentagem | D22: =SUM(D6+D8+D10+D12+D14+D16+D18+D20)/$O$27 ->  | E22: =SUM(E6+E8+E10+E12+E14+E16+E18+E20)/$O$27 -> 
A23: Custo | D23: =$O$27*D22 ->  | E23: =$O$27*E22 ->  | F23: =$O$27*F22 -> 
A24: Porcentagem Acumulado | D24: =D22 ->  | E24: =D24+E22 ->  | F24: =E24+F22 -> 
A25: Custo Acumulado | D25: =D23 ->  | E25: =D25+E23 -> 
D27: Total Geral | N27: R$ | O27: =MOD.L1!K40 -> 0

Sheet Projeto Executivo
A1: COMPOSIÇAO PREÇO PROJETO EXECUTIVO (POR KM)
A3: DISCRIMINAÇAO | C3: Pr. Unit. | D3: Pr. Total
A5: A· EOUIPE TECNICA
B6: A. 1 - Pessoal de Nível Superior | C6: =(97.78*5)+(97.78*5) -> 977.8 | D6: =SUM(C6:C7) -> 1699.5
B7: A.2 - Pessoal de Nível Técnico e Aux. | C7: =(16.41*10)+(27.88*20) -> 721.7
A8: B - ENCARGOS SOCIAIS
B9: Taxas 72,54 % do item "A" | D9: =0.7254*D6 -> 1232.8173
A10: C - DESPESAS GERAIS
B11: C.1 - MATERIAIS DE CONSUMO | C11: 808.93 | D11: =SUM(C11:C13) -> 1378.73
B12: C.2 - VEÍCULOS + COMBUSTÍVEL | C12: =(10*27.69)+3.38*80 -> 547.3
B13: C.3 - EQUIPAMENTOS | C13: =10*2.25 -> 22.5
B14: C.4 - INSTALAÇÕES E MOBILIÁRIO
A15: D - ENSAIOS
B16: D.1 - ENSAIOS | C16: =Ensaios!F26 -> 0 | D16: =C16 -> 0
A17: I - SOMA (A+B+C+D) | D17: =D6+D9+D11+D16 -> 4311.0473
A18: II - CUSTOS ADMINISTIRATIVOS (23,74 %) | D18: =0.2374*D17 -> 1023.442629
A19: III - SOMA | D19: =SUM(D17:D18) -> 5334.489929
A20: VI - RELATÓRIOS | C20: 500 | D20: =C20 -> 500
A21: V - DESPESAS DIRETAS (3,74%) | C21: =0.0374*C20 -> 18.7 | D21: =C21 -> 18.7
A22: VI - REMUNERAÇAO DA EMPRESA
B23: Taxas 4,75% | C23: =0.0475*C21 -> 0.88825 | D23: 0.88825
A24: VII - CONTIGÊNCIAS | C24: =0.0577*C20 -> 28.85 | D24: 28.85
A25: VIII - SOMA | D25: =SUM(D20:D24) -> 548.43825
A26: IX - CUSTOS ADMINISTIRATIVOS (23,74 %) | D26: =0.2374*D25 -> 130.1992406
A27: III - SOMA | D27: =SUM(D25:D26) -> 678.6374906
A28: X - TOTAL | D28: =D27+D19 -> 6013.12742

Sheet Ensaios
A1: SERVIÇOS GEOLÓGICOS/GEOTÉCNICOS
A3: NOME DA EMPRESA:
A5: PROJETO: | D5: CONTRATANTE: | F5: EDITAL:
D6: =[11]PFP!D6 -> Codevasf (Sede)
A7: Cod. | B7: Insumos | C7: Uni | D7: Qde | E7: Preço Unitário (PU) | F7: Preço Total (PT)
A8: GT01 | B8: Ensaios em solos Umidade Natural | C8: un | D8: 1 | F8: =ROUND(E8*D8,2) -> 0
A9: GT02 | B9: Ensaios do Frasco de Areia (in Situ) | C9: un | D9: 1 | F9: 0
A10: GT03 | B10: Ensaios em solos Limite de Liquidez | C10: un | D10: 1 | F10: 0
A11: GT04 | B11: Ensaios em solos Limite de Plasticidade | C11: un | D11: 1 | F11: 0
A12: GT05 | B12: Granulometria por Peneiramento | C12: un | D12: 1 | F12: 0
A13: GT06 | B13: Granulometria Completa | C13: un | D13: 1 | F13: 0
A14: GT07 | B14: Massa Específica Real dos Grãos | C14: un | D14: 1 | F14: 0
A15: GT08 | B15: Proctor Normal | C15: un | D15: 2 | F15: 0
A16: GT09 | B16: Abrasão "Los Angeles " | C16: un | D16: 1 | F16: 0
A17: GT10 | B17: Química da Areia | C17: un | D17: 1 | F17: 0
A18: GT11 | B18: Mineralogia da Areia | C18: un | D18: 1 | F18: 0
A19: GT12 | B19: Índice de plasticidade (IP) | C19: un | D19: 1 | F19: 0
A20: GT13 | B20: Índice de Grupo (IG) | C20: un | D20: 1 | F20: 0
A21: GT14 | B21: Compactação | C21: un | D21: 1 | F21: 0
A22: GT15 | B22: Índice de Suporte Califórnia | C22: un | D22: 5 | F22: 0
A23: GT16 | B23: Equivalente de Areia | C23: un | D23: 1 | F23: 0
A24: GT17 | B24: Ensaio de Expansão | C24: un | D24: 1 | F24: 0
A25: GT18 | B25: Unidade Higroscópica | C25: un | D25: 1 | F25: 0
A26: TOTAL SERVIÇOS GEOTÉCNICOS | F26: =SUM(F8:F25) -> 0
A27: NOME DO INFORMANTE: | E27: QUALIFICAÇÃO:
A29: ASSINATURA: | E29: DATA:

Sheet BDI
A2: OBRA:
A3: LOCAL:
A4: DATA BASE:
A5: DETALHAMENTO DO BDI
A6: Serviços
A7: Atualização em 2013.
A9: Item | B9: Descrição dos serviços | C9: Preço de Venda (%) | D9: Custo Direto (%)
A11: 1 | B11: Administração Central (A) | D11: 0.0401
A13: 2 | B13: Impostos e Taxas (I) | C13: 0.0615
A14: 2.1 | B14: ISS | C14: 0.025
A15: 2.2 | B15: PIS | C15: 0.0065
A16: 2.3 | B16: Cofins | C16: 0.03
A18: 3 | B18: Risco, seguro e garantia (R) | D18: 0.0096
A20: 4 | B20: Despesas Financeiras (AP) | D20: 0.0111
A22: 5 | B22: Lucro (L) | D22: 0.073
B24: BDI* (%) | D24: =ROUND(((((1+D11+D18)*(1+D20)*(1+D22))/(1-C13))-1),4) -> 0.2135
A26: Considerações:
A27: Acórdão Nº 2622/2013 – TCU – Plenário
A28: (*) BDI (%) = ((((1+AC+R)*(1+DF)*(1+L))/(1-I))-1) | B28: Médio, em área e prazo em condições normais de execução
A29: Tipo da Obra: | B29: 50% de X% (valor da tabela Prefeitura de XXX)
A30: ISS municipal: | B30: 5% (ADOTADO)

Sheet ENC. SOCIAIS
A6: NOME DA CONCORRENTE:
A7: EDITAL:
A8: FOLHA:
A9: =MOD.L1!A1 -> EXECUÇÃO DE SERVIÇOS DE IMPLANTAÇÃO DE PAVIMENTAÇÃO EM CONCRETO BETUMINOSO USINADO A QUENTE, EM VIAS URBANAS E RURAIS DE MUNÍCIPIOS DIVERSOS INSERIDOS NA ÁREA DE ATUAÇÃO DA CODEVASF, NO ESTADO DE MINAS GERAIS - LOTE 1 (POLO: SALINAS/MG)
A11: DETALHAMENTO DOS ENCARGOS SOCIAIS (%)
A12: VIGÊNCIA A PARTIR DE 10/2020 | C12: COM DESONERAÇÃO | E12: SEM DESONERAÇÃO
C14: HORISTA | D14: MENSALISTA | E14: HORISTA | F14: MENSALISTA
A16: GRUPO A
A17: A1 | B17: INSS | C17: 0 | D17: 0 | E17: 20 | F17: 20
A18: A2 | B18: SESI | C18: 1.5 | D18: 1.5 | E18: 1.5 | F18: 1.5
A19: A3 | B19: SENAI | C19: 1 | D19: 1 | E19: 1 | F19: 1
A20: A4 | B20: INCRA | C20: 0.2 | D20: 0.2 | E20: 0.2 | F20: 0.2
A21: A5 | B21: SEBRAE | C21: 0.6 | D21: 0.6 | E21: 0.6 | F21: 0.6
A22: A6 | B22: Salário Educação | C22: 2.5 | D22: 2.5 | E22: 2.5 | F22: 2.5
A23: A7 | B23: Seguro Contra Acidentes de Trabalho | C23: 3 | D23: 3 | E23: 3 | F23: 3
A24: A8 | B24: FGTS | C24: 8 | D24: 8 | E24: 8 | F24: 8
A25: A9 | B25: SECONCI | C25: 1 | D25: 1 | E25: 1.2 | F25: 1.2
A26: A | B26: Total | C26: =SUM(C17:C25) -> 17.8 | D26: =SUM(D17:D25) -> 17.8 | E26: =SUM(E17:E25) -> 38 | F26: =SUM(F17:F25) -> 38
A27: GRUPO B
A28: B1 | B28: Repouso Semanal Remunerado | C28: 17.88 | D28: - | E28: 17.76 | F28: -
A29: B2 | B29: Feriados | C29: 3.94 | D29: - | E29: 3.68 | F29: -
A30: B3 | B30: Auxílio-enfermidade | C30: 0.91 | D30: 0.69 | E30: 0.87 | F30: 0.67
A31: B4 | B31: 13° salário | C31: 10.98 | D31: 8.33 | E31: 10.81 | F31: 8.33
A32: B5 | B32: Licença-paternidade | C32: 0.07 | D32: 0.06 | E32: 0.07 | F32: 0.06
A33: B6 | B33: Faltas Justificadas | C33: 0.73 | D33: 0.56 | E33: 0.72 | F33: 0.56
A34: B7 | B34: Dias de chuva | C34: 1.45 | D34: - | E34: 1.05 | F34: 0
A35: B8 | B35: Auxílio Acidente de Trabalho | C35: 0.11 | D35: 0.09 | E35: 0.11 | F35: 0.08
A36: B9 | B36: Férias Gozadas | C36: 11.35 | D36: 8.62 | E36: 9.72 | F36: 7.49
A37: B10 | B37: Salário Maternidade | C37: 0.03 | D37: 0.03 | E37: 0.03 | F37: 0.03
A38: B | B38: Total | C38: =SUM(C28:C37) -> 47.45 | D38: =SUM(D28:D37) -> 18.38 | E38: =SUM(E28:E37) -> 44.82 | F38: =SUM(F28:F37) -> 17.22
A39: GRUPO C
A40: C1 | B40: Aviso Prévio Indenizado | C40: 6.76 | D40: 5.14 | E40: 5.83 | F40: 4.5
A41: C2 | B41: Aviso Prévio Trabalhado | C41: 0.16 | D41: 0.12 | E41: 0.14 | F41: 0.11
A42: C3 | B42: Férias Indenizadas | C42: 2.28 | D42: 1.73 | E42: 3.93 | F42: 3.03
A43: C4 | B43: Depósito Rescisão Sem Justa Causa | C43: 3.81 | D43: 2.89 | E43: 3.78 | F43: 2.91
A44: C5 | B44: Indenização Adicional | C44: 0.57 | D44: 0.43 | E44: 0.49 | F44: 0.38
A45: C | B45: Total | C45: =SUM(C40:C44) -> 13.58 | D45: =SUM(D40:D44) -> 10.31 | E45: =SUM(E40:E44) -> 14.17 | F45: =SUM(F40:F44) -> 10.93
A46: GRUPO D
A47: D1 | B47: Reincidência de A sobre B | C47: 8.45 | D47: 3.27 | E47: 17.03 | F47: 6.54
A48: D2 | B48: Reincidência de Grupo A sobre Aviso Prévio Trabalhado e Reincidência do FGTS sobre Aviso Prévio Indenizado | C48: 0.57 | D48: 0.43 | E48: 0.52 | F48: 0.4
A49: D | B49: Total | C49: =SUM(C47:C48) -> 9.02 | D49: =SUM(D47:D48) -> 3.7 | E49: =SUM(E47:E48) -> 17.55 | F49: =SUM(F47:F48) -> 6.94
A51: T O T A L (%) | C51: =C26+C38+C45+C49 -> 87.85 | D51: =D26+D38+D45+D49 -> 50.19 | E51: =E26+E38+E45+E49 -> 114.54 | F51: =F26+F38+F45+F49 -> 73.09

Sheet CPU_SICRO
M1: ESTADO MINAS GERAIS | P1: DMT | Q1: 80 | R1: Da usina para a obra
A2: CGCIT | I2: DNIT | M2: JANEIRO 2021 | P2: DMT | Q2: 10 | R2: Areeira para usina
A3: SISTEMA DE CUSTOS REFERENCIAIS DE OBRAS - SICRO | D3: =$M$1 -> ESTADO MINAS GERAIS | P3: DMT | Q3: 5 | R3: Pedreira para usina
A4: Custo Unitário de Referência | D4: =M2 -> JANEIRO 2021 | G4: Produção da equipe | H4: 99.6 | I4: t | P4: DMT | Q4: 5 | R4: Jazida para obra (base)
A5: 4011463 | B5: Concreto asfáltico - faixa C - areia e brita comerciais | H5: Valores em reais (R$) | P5: DMT | Q5: 5 | R5: Bota-Fora
A6: A - EQUIPAMENTOS | C6: Quantidade | D6: Utilização | F6: Custo Horário | I6: Custo | P6: DMT | Q6: 1 | R6: Geral - Canteiro pra obra
D7: Operativa | E7: Improdutiva | F7: Produtivo | G7: Improdutivo | I7: Horário Total
A8: E9762 | B8: Rolo compactador de pneus autopropelido de 27 t - 85 kW | C8: 1 | D8: 0.71 | E8: 0.29 | F8: =VLOOKUP($A8,#REF!,8,0) ->  | G8: =VLOOKUP($A8,#REF!,7,0) ->  | I8: =ROUND((C8*(D8*F8))+(C8*(E8*G8)),4) -> 
A9: E9681 | B9: Rolo compactador liso tandem vibratório autopropelido de 10,4 t - 82 Kw | C9: 1 | D9: 0.82 | E9: 0.18 | F9: =VLOOKUP($A9,#REF!,8,0) ->  | G9: =VLOOKUP($A9,#REF!,7,0) -> 
A10: E9545 | B10: Vibroacabadora de asfalto sobre esteiras - 82 kW | C10: 1 | D10: 1 | E10: 0 | F10: =VLOOKUP($A10,#REF!,8,0) ->  | G10: =VLOOKUP($A10,#REF!,7,0) -> 
G11: Custo horário total de equipamentos | I11: =SUM(I8:I10) -> 
A12: B - MÃO DE OBRA | C12: Quantidade | D12: Unidade | E12: Custo Horário | G12: Custo Horário Total
A13: P9824 | B13: Servente | C13: 8 | D13: h | E13: =VLOOKUP($A13,#REF!,6,0) ->  | I13: =ROUND(C13*E13,4) -> 
C14: Custo horário total de mão de obra | H14: =SUM(I13) -> 
C15: Custo horário total de execução | I15: =SUM(H14,I11) ->  | J15: 560
C16: Custo unitário de execução | I16: =I15/H4 -> 
G17: Custo do FIC | H17: 0.00176 | I17: =I16*H17 -> 
G18: Custo do FIT | I18: -
A19: C - MATERIAL | C19: Quantidade | D19: Unidade | E19: Preço Unitário | G19: Custo Unitário
C20: Custo unitário total de material
A21: D - ATIVIDADES AUXILIARES | C21: Quantidade | D21: Unidade | E21: Custo Unitário | G21: Custo Unitário
A22: 6416078 | B22: Usinagem de concreto asfáltico - faixa C - areia e brita comerciais | C22: 1.02 | D22: t | F22: =I83 ->  | I22: =ROUND(C22*F22,4) -> 
C23: Custo total de atividades auxiliares | I23: =SUM(I22) ->  | J23: 113.5
G24: Subtotal | I24: =SUM(I23,I17,I16,I18) ->  | J24: 119.15
A25: E - TEMPO FIXO | C25: Código | D25: Quantidade | E25: Unidade | F25: Custo Unitário | H25: Custo Unitário
A26: 6416078 | B26: Usinagem de concreto asfáltico - faixa C - areia e brita comerciais - Caminhão basculante 10 m³ | C26: 5914649 | D26: 1.02 | E26: t | G26: =I218 ->  | I26: =ROUND(D26*G26,4) -> 
C27: Custo unitário total de tempo fixo | I27: =SUM(I26) ->  | J27: 4.27
A28: F - MOMENTO DE TRANSPORTE | C28: Quantidade | D28: Unidade | E28: DMT | I28: Custo Unitário
E29: LN | F29: RP | G29: P
A30: 6416078 | B30: Usinagem de concreto asfáltico - faixa C - areia e brita comerciais - Caminhão basculante 10 m³ | C30: 1.02 | D30: tkm | G30: =$Q$1 -> 80 | I30: =ROUND((C30*G30)*$I$164,4) -> 
C31: Custo unitário total de transporte | I31: =SUM(I30) -> 
E32: Custo unitário direto total | I32: =SUM(I31,I27,I24) -> 
F33: BDI | G33: ='[12]Médio Porte'!$D$24 -> 0.2374 | I33: =ROUND(I32*G33,4) ->  | K33: SEM O CUSTO DA MASSA E DO MOMENTO DE TRANSPORTE
G34: Preço Unitário: | I34: =SUM(I32,I33) ->  | J34: 123.43
A35: Obs.
A37: CGCIT | I37: DNIT
A38: SISTEMA DE CUSTOS REFERENCIAIS DE OBRAS - SICRO | D38: =$M$1 -> ESTADO MINAS GERAIS
A39: Custo Unitário de Referência | D39: =M2 -> JANEIRO 2021 | G39: Produção da equipe | H39: 99.6 | I39: t
A40: 6416078 | B40: Usinagem de concreto asfáltico - faixa C - areia e brita comerciais | H40: Valores em reais (R$)
A41: A - EQUIPAMENTOS | C41: Quantidade | D41: Utilização | F41: Custo Horário | I41: Custo
D42: Operativa | E42: Improdutiva | F42: Produtivo | G42: Improdutivo | I42: Horário Total
A43: E9559 | B43: Aquecedor de fluido térmico - 12 kW | C43: 1 | D43: 1 | E43: 0 | F43: =VLOOKUP($A43,#REF!,8,0) ->  | G43: =VLOOKUP($A43,#REF!,7,0) ->  | I43: =ROUND((C43*(D43*F43))+(C43*(E43*G43)),4) -> 
A44: E9584 | B44: Carregadeira de pneus com capacidade de 1,72 m³ - 113 kW | C44: 1 | D44: 0.8 | E44: 0.2 | F44: =VLOOKUP($A44,#REF!,8,0) ->  | G44: =VLOOKUP($A44,#REF!,7,0) -> 
A45: E9021 | B45: Grupo gerador - 456 kVA | C45: 1 | D45: 1 | E45: 0 | F45: =VLOOKUP($A45,#REF!,8,0) ->  | G45: =VLOOKUP($A45,#REF!,7,0) -> 
A46: E9558 | B46: Tanque de estocagem de asfalto com capacidade de 30.000 l | C46: 2 | D46: 1 | E46: 0 | F46: =VLOOKUP($A46,#REF!,8,0) ->  | G46: =VLOOKUP($A46,#REF!,7,0) -> 
A47: E9689 | B47: Usina de asfalto a quente gravimétrica com capacidade de 100/140 t/h - 260 kW | C47: 1 | D47: 1 | E47: 0 | F47: =VLOOKUP($A47,#REF!,8,0) ->  | G47: =VLOOKUP($A47,#REF!,7,0) -> 
G48: Custo horário total de equipamentos | I48: =SUM(I43:I47) ->  | J48: 1324.34
A49: B - MÃO DE OBRA | C49: Quantidade | D49: Unidade | E49: Custo Horário | G49: Custo Horário Total
A50: P9824 | B50: Servente | C50: 4 | D50: h | E50: =VLOOKUP($A50,#REF!,6,0) ->  | I50: =ROUND(C50*E50,4) -> 
C51: Custo horário total de mão de obra | H51: =SUM(I50) -> 
C52: Custo horário total de execução | I52: =SUM(I48,H51) ->  | J52: 1389
C53: Custo unitário de execução | I53: =I52/H39 ->  | J53: 13.95
G54: Custo do FIC | I54: -
G55: Custo do FIT | I55: -
A56: C - MATERIAL | C56: Quantidade | D56: Unidade | E56: Preço Unitário | G56: Custo Unitário
A57: M0028 | B57: Areia média | C57: 0.32475 | D57: m³ | F57: =VLOOKUP($A57,#REF!,5,0) ->  | I57: =ROUND(C57*F57,4) -> 
A58: M0005 | B58: Brita 0 | C58: 0.06245 | D58: m³ | F58: =VLOOKUP($A58,#REF!,5,0) ->  | I58: =ROUND(C58*F58,4) -> 
A59: M0191 | B59: Brita 1 | C59: 0.06245 | D59: m³ | F59: =VLOOKUP($A59,#REF!,5,0) -> 
A60: M0344 | B60: Cal hidratada - a granel | C60: 56.2 | D60: kg | F60: =VLOOKUP($A60,#REF!,5,0) -> 
A61: M1943 | B61: Cimento asfáltico CAP 50/70 | C61: 0.06323 | D61: t | F61: =VLOOKUP($A61,#REF!,5,0) ->  | J61: 0
A62: M1941 | B62: Óleo combustível 1A | C62: 8 | D62: l | F62: =VLOOKUP($A62,#REF!,5,0) -> 
A63: M1103 | B63: Pedrisco | C63: 0.13739 | D63: m³ | F63: =VLOOKUP($A63,#REF!,5,0) -> 
C64: Custo unitário total de material | I64: =SUM(I57:I63) -> 
A65: D - ATIVIDADES AUXILIARES | C65: Quantidade | D65: Unidade | E65: Custo Unitário | G65: Custo Unitário
C66: Custo total de atividades auxiliares
G67: Subtotal | I67: =SUM(I64,I53,I54,I55) -> 
A68: E - TEMPO FIXO | C68: Código | D68: Quantidade | E68: Unidade | F68: Custo Unitário | H68: Custo Unitário
A69: M0028 | B69: Areia média - Caminhão basculante 10 m³ | C69: 5914647 | D69: 0.48713 | E69: t | G69: =$I$110 ->  | I69: =ROUND(D69*G69,4) -> 
A70: M0005 | B70: Brita 0 - Caminhão basculante 10 m³ | C70: 5914647 | D70: 0.09368 | E70: t | G70: =$I$110 ->  | I70: =ROUND(D70*G70,4) -> 
A71: M0191 | B71: Brita 1 - Caminhão basculante 10 m³ | C71: 5914647 | D71: 0.09368 | E71: t
A72: M0344 | B72: Cal hidratada - a granel - Caminhão silo 30 m³ | C72: 5914363 | D72: 0.0562 | E72: t | G72: =$I$137 -> 
A73: M1103 | B73: Pedrisco - Caminhão basculante 10 m³ | C73: 5914647 | D73: 0.20609 | E73: t
C74: Custo unitário total de tempo fixo | I74: =SUM(I69:I73) ->  | J74: 1.4284
A75: F - MOMENTO DE TRANSPORTE | C75: Quantidade | D75: Unidade | E75: DMT | I75: Custo Unitário
E76: LN | F76: RP | G76: P
A77: M0028 | B77: Areia média - Caminhão basculante 10 m³ | C77: 0.48713 | D77: tkm | G77: =$Q$2 -> 10 | I77: =ROUND((C77*G77)*$I$164,4) ->  | K77: 5914389
A78: M0005 | B78: Brita 0 - Caminhão basculante 10 m³ | C78: 0.09368 | D78: tkm | G78: =$Q$3 -> 5 | I78: =ROUND((C78*G78)*$I$164,4) ->  | K78: 5914389
A79: M0191 | B79: Brita 1 - Caminhão basculante 10 m³ | C79: 0.09368 | D79: tkm | G79: =$Q$3 -> 5 | I79: =ROUND((C79*G79)*$I$164,4) ->  | K79: 5914389
A80: M0344 | B80: Cal hidratada - a granel - Caminhão silo 30 m³ | C80: 0.0562 | D80: tkm | G80: =$Q$3 -> 5 | I80: =ROUND((C80*G80)*$I$191,4) ->  | K80: 5914366
A81: M1103 | B81: Pedrisco - Caminhão basculante 10 m³ | C81: 0.20609 | D81: tkm | G81: =$Q$3 -> 5 | I81: =ROUND((C81*G81)*$I$164,4) ->  | K81: 5914389
C82: Custo unitário total de transporte | I82: =SUM(I77:I81) -> 
E83: Custo unitário direto total | I83: =ROUND(SUM(I82,I74,I67),2) ->  | J83: 111.28
A84: Obs.
A86: CGCIT | I86: DNIT
A87: SISTEMA DE CUSTOS REFERENCIAIS DE OBRAS - SICRO | D87: =$M$1 -> ESTADO MINAS GERAIS
A88: Custo Unitário de Referência | D88: =M2 -> JANEIRO 2021 | G88: Produção da equipe | H88: 457.16 | I88: t
A89: 5914647 | B89: Carga, manobra e descarga de agregados ou solos em caminhão basculante de 10 m³ - carga com carregadeira de 3,40 m³ (exclusa) e descarga livre | H89: Valores em reais (R$)
A90: A - EQUIPAMENTOS | C90: Quantidade | D90: Utilização | F90: Custo Horário | I90: Custo
D91: Operativa | E91: Improdutiva | F91: Produtivo | G91: Improdutivo | I91: Horário Total
A92: E9579 | B92: Caminhão basculante com capacidade de 10 m³ - 188 kW | C92: 3 | D92: 0.86 | E92: 0.14 | F92: =VLOOKUP($A92,#REF!,8,0) ->  | G92: =VLOOKUP($A92,#REF!,7,0) ->  | I92: =ROUND((C92*(D92*F92))+(C92*(E92*G92)),4) -> 
G93: Custo horário total de equipamentos | I93: =SUM(I92) ->  | J93: 434.37
A94: B - MÃO DE OBRA | C94: Quantidade | D94: Unidade | E94: Custo Horário | G94: Custo Horário Total
C95: Custo horário total de mão de obra | H95: -
C96: Custo horário total de execução | I96: =SUM(I93) -> 
C97: Custo unitário de execução | I97: =I96/H88 -> 
G98: Custo do FIC | I98: -
G99: Custo do FIT | I99: -
A100: C - MATERIAL | C100: Quantidade | D100: Unidade | E100: Preço Unitário | G100: Custo Unitário
C101: Custo unitário total de material
A102: D - ATIVIDADES AUXILIARES | C102: Quantidade | D102: Unidade | E102: Custo Unitário | G102: Custo Unitário
C103: Custo total de atividades auxiliares
G104: Subtotal | I104: =SUM(I97,I98,I99) -> 
A105: E - TEMPO FIXO | C105: Código | D105: Quantidade | E105: Unidade | F105: Custo Unitário | H105: Custo Unitário
C106: Custo unitário total de tempo fixo
A107: F - MOMENTO DE TRANSPORTE | C107: Quantidade | D107: Unidade | E107: DMT | I107: Custo Unitário
E108: LN | F108: RP | G108: P
C109: Custo unitário total de transporte
E110: Custo unitário direto total | I110: =ROUND(SUM(I104),4) ->  | J110: 0.95
A111: Obs.
A113: CGCIT | I113: DNIT
A114: SISTEMA DE CUSTOS REFERENCIAIS DE OBRAS - SICRO | D114: =$M$1 -> ESTADO MINAS GERAIS
A115: Custo Unitário de Referência | D115: =M2 -> JANEIRO 2021 | G115: Produção da equipe | H115: 25.97 | I115: t
A116: 5914363 | B116: Carga, manobra e descarga de cimento a granel em caminhão silo de 30 m³ | H116: Valores em reais (R$)
A117: A - EQUIPAMENTOS | C117: Quantidade | D117: Utilização | F117: Custo Horário | I117: Custo
D118: Operativa | E118: Improdutiva | F118: Produtivo | G118: Improdutivo | I118: Horário Total
A119: E9146 | B119: Caminhão silo com capacidade de 30 m³ - 265 kW | C119: 1 | D119: 1 | E119: 0 | F119: =VLOOKUP($A119,#REF!,8,0) ->  | G119: =VLOOKUP($A119,#REF!,7,0) ->  | I119: =ROUND((C119*(D119*F119))+(C119*(E119*G119)),4) -> 
G120: Custo horário total de equipamentos | I120: =SUM(I119) -> 
A121: B - MÃO DE OBRA | C121: Quantidade | D121: Unidade | E121: Custo Horário | G121: Custo Horário Total
C122: Custo horário total de mão de obra | H122: -
C123: Custo horário total de execução | I123: =SUM(I120) ->  | J123: 273.4
C124: Custo unitário de execução | I124: =I123/H115 -> 
G125: Custo do FIC | I125: -
G126: Custo do FIT | I126: -
A127: C - MATERIAL | C127: Quantidade | D127: Unidade | E127: Preço Unitário | G127: Custo Unitário
C128: Custo unitário total de material
A129: D - ATIVIDADES AUXILIARES | C129: Quantidade | D129: Unidade | E129: Custo Unitário | G129: Custo Unitário
C130: Custo total de atividades auxiliares
G131: Subtotal | I131: =SUM(I124,I125,I126) -> 
A132: E - TEMPO FIXO | C132: Código | D132: Quantidade | E132: Unidade | F132: Custo Unitário | H132: Custo Unitário
C133: Custo unitário total de tempo fixo
A134: F - MOMENTO DE TRANSPORTE | C134: Quantidade | D134: Unidade | E134: DMT | I134: Custo Unitário
E135: LN | F135: RP | G135: P
C136: Custo unitário total de transporte
E137: Custo unitário direto total | I137: =ROUND(SUM(I131),2) ->  | J137: 10.53
A138: Obs.
A140: CGCIT | I140: DNIT
A141: SISTEMA DE CUSTOS REFERENCIAIS DE OBRAS - SICRO | D141: =$M$1 -> ESTADO MINAS GERAIS
A142: Custo Unitário de Referência | D142: =M2 -> JANEIRO 2021 | G142: Produção da equipe | H142: 373.5 | I142: tkm
A143: 5914389 | B143: Transporte com caminhão basculante de 10 m³ - rodovia pavimentada | H143: Valores em reais (R$)
A144: A - EQUIPAMENTOS | C144: Quantidade | D144: Utilização | F144: Custo Horário | I144: Custo
D145: Operativa | E145: Improdutiva | F145: Produtivo | G145: Improdutivo | I145: Horário Total
A146: E9579 | B146: Caminhão basculante com capacidade de 10 m³ - 188 kW | C146: 1 | D146: 1 | E146: 0 | F146: =VLOOKUP($A146,#REF!,8,0) ->  | G146: =VLOOKUP($A146,#REF!,7,0) ->  | I146: =ROUND((C146*(D146*F146))+(C146*(E146*G146)),4) -> 
G147: Custo horário total de equipamentos | I147: =SUM(I146) ->  | J147: 160.67
A148: B - MÃO DE OBRA | C148: Quantidade | D148: Unidade | E148: Custo Horário | G148: Custo Horário Total
C149: Custo horário total de mão de obra | H149: -
C150: Custo horário total de execução | I150: =SUM(I147) -> 
C151: Custo unitário de execução | I151: =I150/H142 -> 
G152: Custo do FIC | I152: -
G153: Custo do FIT | I153: -
A154: C - MATERIAL | C154: Quantidade | D154: Unidade | E154: Preço Unitário | G154: Custo Unitário
C155: Custo unitário total de material
A156: D - ATIVIDADES AUXILIARES | C156: Quantidade | D156: Unidade | E156: Custo Unitário | G156: Custo Unitário
C157: Custo total de atividades auxiliares
G158: Subtotal | I158: =SUM(I151,I152,I153) -> 
A159: E - TEMPO FIXO | C159: Código | D159: Quantidade | E159: Unidade | F159: Custo Unitário | H159: Custo Unitário
C160: Custo unitário total de tempo fixo
A161: F - MOMENTO DE TRANSPORTE | C161: Quantidade | D161: Unidade | E161: DMT | I161: Custo Unitário
E162: LN | F162: RP | G162: P
C163: Custo unitário total de transporte | I163: -
E164: Custo unitário direto total | I164: =ROUND(SUM(I158),2) ->  | J164: 0.43
A165: Obs.
A167: CGCIT | I167: DNIT
A168: SISTEMA DE CUSTOS REFERENCIAIS DE OBRAS - SICRO | D168: =$M$1 -> ESTADO MINAS GERAIS
A169: Custo Unitário de Referência | D169: =M2 -> JANEIRO 2021 | G169: Produção da equipe | H169: 779.12 | I169: tkm
A170: 5914366 | B170: Transporte de cimento a granel com caminhão silo de 30 m³ - rodovia pavimentada | H170: Valores em reais (R$)
A171: A - EQUIPAMENTOS | C171: Quantidade | D171: Utilização | F171: Custo Horário | I171: Custo
D172: Operativa | E172: Improdutiva | F172: Produtivo | G172: Improdutivo | I172: Horário Total
A173: E9146 | B173: Caminhão silo com capacidade de 30 m³ - 265 kW | C173: 1 | D173: 1 | E173: 0 | F173: =VLOOKUP($A173,#REF!,8,0) ->  | G173: =VLOOKUP($A173,#REF!,7,0) ->  | I173: =ROUND((C173*(D173*F173))+(C173*(E173*G173)),4) -> 
G174: Custo horário total de equipamentos | I174: =SUM(I173) -> 
A175: B - MÃO DE OBRA | C175: Quantidade | D175: Unidade | E175: Custo Horário | G175: Custo Horário Total
C176: Custo horário total de mão de obra | H176: -
C177: Custo horário total de execução | I177: =SUM(I174) -> 
C178: Custo unitário de execução | I178: =I177/H169 -> 
G179: Custo do FIC | I179: -
G180: Custo do FIT | I180: -
A181: C - MATERIAL | C181: Quantidade | D181: Unidade | E181: Preço Unitário | G181: Custo Unitário
C182: Custo unitário total de material
A183: D - ATIVIDADES AUXILIARES | C183: Quantidade | D183: Unidade | E183: Custo Unitário | G183: Custo Unitário
C184: Custo total de atividades auxiliares
G185: Subtotal | I185: =SUM(I178,I179,I180) -> 
A186: E - TEMPO FIXO | C186: Código | D186: Quantidade | E186: Unidade | F186: Custo Unitário | H186: Custo Unitário
C187: Custo unitário total de tempo fixo
A188: F - MOMENTO DE TRANSPORTE | C188: Quantidade | D188: Unidade | E188: DMT | I188: Custo Unitário
E189: LN | F189: RP | G189: P
C190: Custo unitário total de transporte | I190: -
E191: Custo unitário direto total | I191: =ROUND(SUM(I185),2) ->  | J191: 0.35
A192: Obs.
A194: CGCIT | I194: DNIT
A195: SISTEMA DE CUSTOS REFERENCIAIS DE OBRAS - SICRO | D195: =$M$1 -> ESTADO MINAS GERAIS
A196: Custo Unitário de Referência | D196: =M2 -> JANEIRO 2021 | G196: Produção da equipe | H196: 99.6 | I196: t
A197: 5914649 | B197: Carga, manobra e descarga de mistura betuminosa a quente em caminhão basculante de 10 m³ - carga em usina de asfalto 100/140 t/h e descarga em vibroacabadora | H197: Valores em reais (R$)
A198: A - EQUIPAMENTOS | C198: Quantidade | D198: Utilização | F198: Custo Horário | I198: Custo
D199: Operativa | E199: Improdutiva | F199: Produtivo | G199: Improdutivo | I199: Horário Total
A200: E9579 | B200: Caminhão basculante com capacidade de 10 m³ - 188 kW | C200: 3 | D200: 0.81 | E200: 0.19 | F200: =VLOOKUP($A200,#REF!,8,0) ->  | G200: =VLOOKUP($A200,#REF!,7,0) ->  | I200: =ROUND((C200*(D200*F200))+(C200*(E200*G200)),4) -> 
G201: Custo horário total de equipamentos | I201: =SUM(I200) -> 
A202: B - MÃO DE OBRA | C202: Quantidade | D202: Unidade | E202: Custo Horário | G202: Custo Horário Total
C203: Custo horário total de mão de obra | H203: -
C204: Custo horário total de execução | I204: =SUM(I201) ->  | J204: 417.3561
C205: Custo unitário de execução | I205: =I204/H196 -> 
G206: Custo do FIC | I206: -
... 1219 more rows
